Cogmind - Beta 10.2 *** ADVENTURER MODE // 2021.11.28 @ 14:43:05 Player: Yog-Sothoth Result: Self-destructed Performance ------------- Evolutions (1) 500 Regions Visited (3) 600 Robots Destroyed (14) 70 Value Destroyed (196) 196 Prototype IDs (4) 80 Alien Tech Used (0) 0 Bonus (85) 85 TOTAL SCORE: 1531 Bonus ------- Follower Combat Kills 85 Cogmind --------- Core Integrity 353/400 Matter 300/300 Energy 100/100 System Corruption 0% Temperature Cool (9) Movement Flying (34) Location -9/Materials Parts ------- > --- POWER (2) -------- (None) > --- PROPULSION (3) --- Flight Unit Flight Unit Flight Unit > --- UTILITY (2) ------ Weight Redist. System Improved Signal Interpreter > --- WEAPON (2) ------- Assault Rifle Makeshift Axe > --- INVENTORY (4) ---- Weight Redist. System Weight Redist. System Improved Targeting Computer Peak State ------------ > --- POWER ------------ Light Ion Engine Light Ion Engine > --- PROPULSION ------- Flight Unit Flight Unit Flight Unit > --- UTILITY ---------- Weight Redist. System Improved Signal Interpreter > --- WEAPON ----------- Assault Rifle Makeshift Axe > --- INVENTORY -------- Weight Redist. System Weight Redist. System Improved Targeting Computer [Rating: 14] Favorites ----------- Power Light Ion Engine Engine Light Ion Engine Propulsion Flight Unit Wheel Armored Wheel Flight Unit Flight Unit Utility Improved Signal Interpreter Device Weight Redist. System Storage Small Storage Unit Processor Improved Signal Interpreter Weapon Assault Rifle Energy Gun EM Pulse Gun Ballistic Gun Assault Rifle Slashing Weapon Makeshift Axe Build | -11 -10 -10 -9 ------- Run | Scr Mat Min Mat Slots Evolved 2 | . . . 2 Power 1 | . . . 1 Propulsion 1 | . . . 1 Utility . | . . . . Weapon . | . . . . Parts Attached 20 | 6 10 1 3 Power 3 | 1 1 . 1 Engine 3 | 1 1 . 1 Core . | . . . . Reactor . | . . . . Propulsion 10 | 2 6 . 2 Treads . | . . . . Leg . | . . . . Wheel 4 | 2 2 . . Hover . | . . . . Flight 6 | . 4 . 2 Utility 4 | 1 3 . . Device 2 | . 2 . . Storage 1 | 1 . . . Processor 1 | . 1 . . Hackware . | . . . . Protection . | . . . . Artifact . | . . . . Weapon 3 | 2 . 1 . Energy Gun 1 | 1 . . . Energy Cannon . | . . . . Ballistic Gun 1 | 1 . . . Ballistic Cannon . | . . . . Launcher . | . . . . Special Weapon . | . . . . Impact Weapon . | . . . . Slashing Weapon 1 | . . 1 . Piercing Weapon . | . . . . Special Melee Weapon . | . . . . Unidentified Prototypes . | . . . . Parts Lost 2 | . . . 2 Power 2 | . . . 2 Propulsion . | . . . . Utility . | . . . . Weapon . | . . . . Highest Loss Streak 2 | . . . 2 Average Slot Usage (%) 95 | . 97 100 83 Engine 13 | . 14 14 13 Wheel 6 | . 13 . . Flight 21 | . 14 28 25 Device 10 | . 7 14 11 Storage 3 | . 7 . . Processor 12 | . 11 14 11 Energy Gun 9 | . 14 8 . Ballistic Gun 13 | . 14 14 11 Slashing Weapon 3 | . . 5 11 Naked Turns . | . . . . Heaviest Build 11 | 11 11 8 11 Greatest Support 26 | 26 26 14 18 Greatest Overweight (x) 1 | 1 . . . Average Overweight (x) . | . . . . Largest Inventory Capacity 6 | 6 6 4 4 Average Capacity 4 | 5 5 4 4 Most Carried 6 | 3 6 4 4 Average Carried 3 | 1 4 3 3 Final Capacity 6 | 6 4 4 4 Final Carried 4 | 2 3 4 3 Class Distribution -------------------- 94% | Mutant 5% | Scavenger-Mutant Dominant Class ---------------- Mutant | -10/Materials Mutant | -10/Mines Mutant | -9/Materials Resources | -11 -10 -10 -9 ----------- Run | Scr Mat Min Mat Matter Collected 439 | 260 129 10 40 Remotely . | . . . . Salvage Created 369 | . 171 . 198 Parts 18 | . 7 . 11 Haulers Intercepted 2 | . . . 2 Recyclers Shooed . | . . . . Parts Field Recycled . | . . . . Retrieved Matter . | . . . . Parts Self-Destructed . | . . . . Prevented . | . . . . Kills | -11 -10 -10 -9 ------- Run | Scr Mat Min Mat Combat Hostiles Destroyed 8 | . 5 . 3 Melee 3 | . . . 3 Guns 3 | . 3 . . AOE 2 | . 2 . . Classes Destroyed 5 | . 3 . 2 Hauler 2 | . . . 2 Operator 1 | . . . 1 Watcher 3 | . 1 . 2 Swarmer 6 | . 3 . 3 Grunt 2 | . 2 . . Best Kill Streak 7 | . 4 . 7 Combat Bots Only 3 | . 3 . 3 Max Kills in Single Turn 2 | . 2 . 1 Gunslinging . | . . . . Exploded 2 | . 2 . . Melee 1 | . . . 1 Uniques/NPCs Destroyed . | . . . . Combat | -11 -10 -10 -9 -------- Run | Scr Mat Min Mat Damage Taken 271 | . 110 . 161 Core 76 | . 29 . 47 Absorbed by Shields . | . . . . Core Remaining (%) 94 | 100 . 88 . Volleys Fired 13 | . 13 . . Largest 2 | . 2 . . Hottest 60 | . 60 . . Shots Fired 26 | . 26 . . Gun 26 | . 26 . . Cannon . | . . . . Launcher . | . . . . Special . | . . . . Kinetic 13 | . 13 . . Thermal . | . . . . Explosive . | . . . . Electromagnetic 13 | . 13 . . Robot Hit Streak 11 | . 11 . . Robot Miss Streak 1 | . 1 . . Penetration Max . | . . . . Secondary Targets . | . . . . Shots Hit Robots 35 | . 20 . 15 Core Hits 15 | . 8 . 7 Critical Hits . | . . . . Critical Kills . | . . . . Critical Parts Destroyed . | . . . . Melee Attacks 19 | . . . 19 Impact . | . . . . Slashing 19 | . . . 19 Piercing . | . . . . Sneak Attacks 3 | . . . 3 Combat Hostiles . | . . . . Follow-up Attacks . | . . . . Damage Inflicted 1224 | . 343 . 881 Guns 275 | . 275 . . Cannons . | . . . . Explosions 68 | . 68 . . Melee 881 | . . . 881 Ramming . | . . . . Kinetic 85 | . 85 . . Thermal 68 | . 68 . . Explosive . | . . . . Electromagnetic 190 | . 190 . . Impact . | . . . . Slashing 881 | . . . 881 Piercing . | . . . . Highest Corruption . | . . . . Average Corruption . | . . . . Corruption Purged . | . . . . Overload Shots . | . . . . Overflow Damage 173 | . . . 173 Projectiles . | . . . . Explosions . | . . . . Melee 173 | . . . 173 Knockbacks . | . . . . Impact . | . . . . Kinetic . | . . . . Secondary . | . . . . Self-Inflicted Damage 24 | . 24 . . Shots 1 | . 1 . . Rammed . | . . . . Targets Rammed . | . . . . Kicked . | . . . . Crushed . | . . . . Highest Temperature 36 | . 36 . 3 Average Temperature 12 | . 12 . 3 Received Heat Transfer 87 | . 42 . 45 Siege Activations . | . . . . Robots Corrupted . | . . . . Combat Hostiles . | . . . . Parts Fried 2 | . 2 . . Impact Corruptions . | . . . . Robots Melted . | . . . . Combat Hostiles . | . . . . Parts Melted . | . . . . Heat Transferred . | . . . . Parts Sabotaged . | . . . . Parts Stolen . | . . . . Parts Stripped . | . . . . Power Chain Reactions 1 | . 1 . . Missiles Intercepted . | . . . . Alert | -11 -10 -10 -9 ------- Run | Scr Mat Min Mat Peak Influence 251 | . 165 61 251 Initial 54 | . . 54 19 Average 76 | . 81 60 121 Maximum Alert Level 1 | . . . 1 Low Security (%) 93 | 100 100 100 61 Level 1 6 | . . . 38 Level 2 . | . . . . Level 3 . | . . . . Level 4 . | . . . . Level 5 . | . . . . High Security . | . . . . Max Security . | . . . . Squads Dispatched 2 | . 1 . 1 Investigation 1 | . 1 . . Extermination . | . . . . Reinforcement 1 | . . . 1 Assault . | . . . . Garrison . | . . . . Intercept . | . . . . Construction Impeded . | . . . . Haulers Reinforced . | . . . . Stealth | -11 -10 -10 -9 --------- Run | Scr Mat Min Mat Distress Signals 2 | . . . 2 Communications Jammed . | . . . . Distress Signals . | . . . . Times Spotted 21 | . 12 . 9 Peak Tracking Total 7 | . 6 . 7 Tactical Retreats 1 | . . . 1 Traps | -11 -10 -10 -9 ------- Run | Scr Mat Min Mat Traps Triggered 1 | . 1 . . Indirectly . | . . . . Trap Hack Attempts . | . . . . Triggered . | . . . . Disarmed . | . . . . Reprogrammed . | . . . . Reused . | . . . . Traps Extracted . | . . . . Installed . | . . . . Triggered . | . . . . Machines | -11 -10 -10 -9 ---------- Run | Scr Mat Min Mat Machines Disabled . | . . . . Max in Single Turn . | . . . . Machines Sabotaged . | . . . . Garrisons Compromised . | . . . . Overloaded Fab Kills . | . . . . Fab Network Shutdowns . | . . . . Hacking | -11 -10 -10 -9 --------- Run | Scr Mat Min Mat Machines Accessed 9 | . 3 2 4 Terminals 7 | . 2 2 3 Fabricators . | . . . . Repair Stations . | . . . . Recycling Units 2 | . 1 . 1 Scanalyzers . | . . . . Garrison Access . | . . . . Total Hacks 21 | . 5 6 10 Successful 16 | . 4 4 8 Failed 5 | . 1 2 2 Catastrophic . | . . . . Database Lockouts . | . . . . Manual . | . . . . Terminals 19 | . 4 6 9 Fabricators . | . . . . Repair Stations . | . . . . Recycling Units 2 | . 1 . 1 Scanalyzers . | . . . . Garrison Access . | . . . . Terminal Hacks 14 | . 3 4 7 Prototype ID Bank 2 | . . . 2 Level Access Points 1 | . . 1 . Emergency Access Points 1 | . . . 1 Alert Level 1 | . . 1 . Locate Traps 1 | . 1 . . Dispatch Records 2 | . . 1 1 Maintenance Status 1 | . . . 1 Transport Status 1 | . 1 . . Registered Components 1 | . . . 1 Registered Prototypes 2 | . 1 . 1 Zone Layout 1 | . . 1 . Fabricator Hacks . | . . . . Repair Station Hacks . | . . . . Recycling Unit Hacks 2 | . 1 . 1 Report Inventory 2 | . 1 . 1 Scanalyzer . | . . . . Garrison Access Hacks . | . . . . Unauthorized Hacks . | . . . . Terminals . | . . . . Fabricators . | . . . . Repair Stations . | . . . . Recycling Units . | . . . . Scanalyzers . | . . . . Garrison Access . | . . . . Data Cores Recovered 1 | . . . 1 Used . | . . . . Hacking Detections 6 | . 2 2 2 Full Trace Events . | . . . . Feedback Events . | . . . . Feedback Blocked . | . . . . Robot Schematics Acquired . | . . . . Robots Built . | . . . . Matter . | . . . . Time . | . . . . Total Robot Build Rating . | . . . . Part Schematics Acquired . | . . . . Parts Built . | . . . . Matter . | . . . . Time . | . . . . Total Part Build Rating . | . . . . Parts Repaired . | . . . . Time . | . . . . Parts Recycled . | . . . . Recycled Matter . | . . . . Retrieved Matter . | . . . . Retrieved Components . | . . . . Parts Scanalyzed . | . . . . Part Schematics Acquired . | . . . . Parts Damaged . | . . . . Bothacking | -11 -10 -10 -9 ------------ Run | Scr Mat Min Mat Used RIF Installer . | . . . . Robots Hacked . | . . . . Non-combat . | . . . . Combat . | . . . . Robot Hacks Applied . | . . . . Relay Couplers Released . | . . . . Robots Rewired . | . . . . Allies Hacked . | . . . . Hacks Repelled . | . . . . Allies | -11 -10 -10 -9 -------- Run | Scr Mat Min Mat Total Allies 1 | . . 1 . Largest Group 1 | . . 1 1 Highest-Rated Group 31 | . . 31 31 Highest-Rated Ally 31 | . . 31 31 Total Orders . | . . . . Ally Attacks 5 | . . . 5 Total Damage 84 | . . . 84 Kills 3 | . . . 3 Allies Corrupted . | . . . . Allies Melted . | . . . . Intel | -11 -10 -10 -9 ------- Run | Scr Mat Min Mat Robot Analysis Total . | . . . . Derelict Logs Recovered 1 | . . 1 . Drone Launches . | . . . . Drone Recoveries . | . . . . Exploration | -11 -10 -10 -9 ------------- Run | Scr Mat Min Mat Turns Passed 665 | 44 295 208 118 Spaces Moved 887 | 34 339 350 164 Core 6 | 6 . . . Treads . | . . . . Legs . | . . . . Wheels 134 | 28 106 . . Hover . | . . . . Flight 747 | . 233 350 164 Fastest Speed 34 | 50 37 37 34 Average Speed 45 | 89 53 37 36 Slowest Speed 100 | 100 90 37 37 Overloaded Moves . | . . . . Propulsion Burnouts . | . . . . Robots Hopped 4 | . 1 3 . Cave-ins Triggered . | . . . . Exploration Rate (%) 36 | 2 51 68 26 Regions Visited 3 Branch Regions 1 Pre-discovered Areas . | . . . . Known Exits Taken 2 | . 1 1 . Unknown Exits Taken 1 | 1 . . . Scrap Searched 1 | . . 1 . Spaces Dug . | . . . . Terrain Destroyed 3 | . 3 . . Melee . | . . . . Projectile . | . . . . AOE 3 | . 3 . . Terrain Rammed . | . . . . Walls Destroyed . | . . . . Machines Disabled . | . . . . Actions | -11 -10 -10 -9 --------- Run | Scr Mat Min Mat Total 1100 | 47 425 425 203 Wait 128 | . 42 75 11 Move 876 | 33 336 343 164 Hop 4 | . 1 3 . Pick Up 25 | 8 12 2 3 Fast Attach 2 | . 1 . 1 Attach 9 | 6 1 1 1 Detach . | . . . . Swap 9 | . 8 . 1 Drop 15 | . 11 1 3 Fire 13 | . 13 . . Melee 19 | . . . 19 Ram . | . . . . Kick . | . . . . Crush . | . . . . Escape Stasis . | . . . . Rewire . | . . . . Trap . | . . . . Miscellaneous . | . . . . Route ------- -11/Scrapyard -10/Materials (discovered 2 exits: *Mat / *Min) -10/Mines (discovered 2 exits: *Mat x2) -9/Materials History --------- Turn | Location | Event 15 | -11/Scrapyard | Discovered new exit (range 15) 45 | -11/Scrapyard | Entered Materials 133 | -10/Materials | Discovered new exit (range 16) 273 | -10/Materials | Discovered new exit (range 11) 277 | -10/Materials | Identified exit to Materials 302 | -10/Materials | Build established: Mutant 333 | -10/Materials | Identified exit to Mines 340 | -10/Materials | Entered Mines 370 | -10/Mines | Assembled infested the area 379 | -10/Mines | Learned Materials terminal intel 453 | -10/Mines | A weapon hastily lodged in a ceiling crevice suddenly fell to the ground 463 | -10/Mines | Received a Mining Laser from a helpful Derelict 548 | -10/Mines | Entered Materials 548 | -9/Materials | Accompanied by 1 ally 548 | -9/Materials | Evolved 2 slots: Power x1, Propulsion x1 549 | -9/Materials | Loaded intel: 12 terminal locations 666 | -9/Materials | Self-destructed Last Messages --------------- 00636_ K-01 Serf cleans the Material Compactor. 00637_ K-01 Serf collects debris. 00638_ Acquired 15 matter. 00639_ W-16 Scout destroyed. 00641_ Acquired 15 matter. 00641_ K-01 Serf collects debris. 00642_ Sneak attack on A-02 Transporter. 00642_ A-02 Transporter destroyed. 00644_ K-01 Serf collects debris. 00647_ O-16 Technician: "IFF HANDSHAKE FAILED. SECURING TERMINAL." 00650_ Sneak attack on A-02 Transporter. 00651_ K-01 Serf collects debris. 00653_ ALERT: Hostiles spotted, dispatching reinforcements to Terminal M012. 00655_ K-01 Serf collects debris. 00656_ Destroyed Lgt. Treads. 00656_ Destroyed Ion Engine. 00656_ Lgt. Ion Engine destroyed. 00664_ A-02 Transporter destroyed. 00666_ Lgt. Ion Engine destroyed. Map ----- +----------------------------------------------------+ | ?????????????????????????????????????????????????? | | ?????????????????????????????????????????????????? | | ?????????????????????????????????????????????????? | | ?????????????????????????????????????????????????? | | ?????????????????????????????????????????????????? | | ?????????????????????????????????????????????????? | | ?????????????????????????????????????????????????? | | ?????????????????????????????????????????????????? | | ?????????????????????????????????????????????????? | | ?????????????????????????????????????????????????? | | ?????????????????????????????????????????????????? | | ?????????????????????????????????????????????????? | | ?????????????????????????????????????????????????? | | ?????????????????????????????????????????????????? | | ?????????????????????????????????????????????????? | | ????????????????????????##+###???????????????????? | | ???????????????????????? k ###?????????????????? | | ???????????????????????? ??????????????????? | | ???????????????????????? T ??????????????????? | | ???????????????????????? ???????????? ??????? | | ???????????????????????? ?????????????# ???? | | ????????????????????????# #?????????????# ???? | | ????????????????????????#! #?????????????# ???? | | ????????????????????????#!! #?????####???## #??? | | ????????????????????????#%!!#?????# ? # #??? | | ???????????????????????##@! ####### ? # #??? | | ??????????????????###+## # # #??? | | ????????????####### # """ + #??? | | ????????????# # # """"" # #??? | | ????????????# # # """"" # #??? | | ????????????# # # """"" # #### | | ????????????# """ # # """ # #"T" | | ????????????# """ + # # | | ????????????# """ # t %+ ! + | | ????????????####### #% == # | | ?????????? Y!###/##+## #### | | ????????? [#[[% % # %# | | ????????? [=+%[ = + + | | ????????? u###[ #^^^# | | ????????? #?#########^^^#### | | ????????? ########+###### #?????????##+##??? | | ?????????? ???????????????# ???????????????? | | ??????????????????????????# ??????????????# | | ??????????????????*???????# #?????????????# | | ??????????????????????????# #?????????????# | | ??????????????????????????# #?????????????# | | ??????????????????????????# #?????????????# | | ?????????????????????????? #?????????????# | | ??????"T"?????????????????# #?????????????# | | ??????????????????????????# ###?????????????# | +----------------------------------------------------+ Best States ------------- Heat Dissipation 28 Energy Generation 15 Energy Capacity 150 Matter Stores 300 Matter Capacity 300 Sight Range 16 Terrain Scan Density 10 Additional Mass Support 6 Resistance: KI 20 Resistance: TH 20 Resistance: EX 20 Resistance: EM 20 Resistance: I 20 Resistance: S 20 Resistance: P 20 Evasion (%) 63 Offensive Hacking 10 Item Schematics ----------------- None Robot Schematics ------------------ None Fabricated ------------ Nothing Alien Tech Used ----------------- None Achievements -------------- None Challenges ------------ None Game ------ Seed PlasmaHoverFilter Manual? 0 Play Time 00:11:54 Cumulative 77.7 hours Start 2021.11.28 @ 08:53:27 End 2021.11.28 @ 14:43:05 Sessions 3 Manual Loads 0 Difficulty Adventurer Special Mode None Game No. 68 Rogue 0 Adventurer 64 Explorer 4 Win Type - Total 0 Types 0/0/0/0/0/0/0/0/0 Lore% 37 Gallery% 53 Achievement% 42 Wizard Run 0 Options --------- ASCII 0 Keyboard 0 Movement Mouse Keybinds 0 Fullscreen 2 Font 24/Smallcaps Map View 76x50 Tactical HUD 1 Map Filters NONE Filters NONE Steam 1 RUN: fbd564e1-4b79-4dc7-b743-d9c4a6f66f8c